Workbook

Sheet 1
E1: Приложение 1 к Решению № 22/1 от 20.04.2022 г « Об исполнении бюджета сельской администрации МО Малочергинское сельское поселение за 2021 года."
A2: Объем поступлений доходов в бюджет муниципального образования Малочергинское сельское поселение за 2021 год
A3: Код главы администратора* | B3: Код бюджетной классификации Российской Федерации | C3: Наименование доходов | D3: Изменения (+;-) | E3: Утверждено, сумма (тыс.рублей) | F3: Исполнено, сумма (тыс.рублей) | G3: Процент исполнения (процент)
A4: 1 | B4: 2 | C4: 3 | D4: 4 | E4: 5
A5: 182 | B5: 1 00 00000 00 0000 000 | C5: НАЛОГОВЫЕ И НЕНАЛОГОВЫЕ ДОХОДЫ | D5: =D6+D15 ->  | E5: =E6+E15 -> 358.20 | F5: =F6+F15 -> 359.35 | G5: =F5/E5*100 -> 100
C6: НАЛОГОВЫЕ ДОХОДЫ | D6: =D7+D8+D10 -> 42.1 | E6: =E7+E8+E10 -> 322.00 | F6: =F7+F8+F10 -> 323.15 | G6: 100
A7: 182 | B7: 1 01 02000 01 0000 110 | C7: Налог на доходы физических лиц | D7: 12.0 | E7: 23.00 | F7: 23.32 | G7: =F7/E7*100 -> 101
A8: 182 | B8: 1 05 00000 00 0000 000 | C8: Налоги на совокупный доход | D8: =D9 -> -1.2 | E8: =E9 -> 25.00 | F8: =F9 -> 25.28 | G8: =F8/E8*100 -> 101
A9: 182 | B9: 1 05 03000 01 0000 110 | C9: Единый сельскохозяйственный налог | D9: -1.2 | E9: 25.00 | F9: 25.28 | G9: 101
A10: 182 | B10: 1 06 00000 00 0000 000 | C10: Налоги на имущество | D10: =D11+D12 -> 31.3 | E10: =E11+E12 -> 274.00 | F10: =F11+F12 -> 274.55 | G10: 100
A11: 182 | B11: 1 06 01030 10 1000 110 | C11: Налог на имущество физических лиц | D11: -8.7 | E11: 22.00 | F11: 22.04 | G11: 100
A12: 182 | B12: 1 06 06000 00 0000 110 | C12: Земельный налог | D12: 40.0 | E12: =E13+E14 -> 252.00 | F12: =F13+F14 -> 252.51 | G12: 100
A13: 182 | B13: 1 06 06033 10 1000 110 | C13: Земельный налог с организаций | E13: 60.00 | F13: 60.20 | G13: 100
A14: 182 | B14: 1 06 06043 10 1000 110 | C14: Земельный налог с физических лиц | E14: 192.00 | F14: 192.31 | G14: 100
C15: НЕНАЛОГОВЫЕ ДОХОДЫ | D15: =#REF! ->  | E15: =E16 -> 36.20 | F15: =F16 -> 36.20 | G15: 100
A16: 801 | B16: 1 11 05035 10 0000 120 | C16: Доходы от сдачи в аренду имущества, находящегося в оперативном управлении органов управления сельских поселений и созданных ими учреждений (за исключением имущества муниципальных бюджетных и автономных учреждений) | E16: 36.20 | F16: 36.20 | G16: 100
A17: 801 | B17: 2 00 00000 00 0000 000 | C17: Безвозмездные поступления | D17: =D18 -> 0.0 | E17: =E18+E24 -> 3287.55 | F17: =F18+F24 -> 3287.55 | G17: 100
A18: 801 | B18: 2 02 00000 00 0000 000 | C18: Безвозмездные поступления от других бюджетов бюджетной системы Российской Федерации | D18: 0.0 | E18: =E19 -> 3287.55 | F18: =F19 -> 3287.55 | G18: 100
A19: 801 | B19: 2 02 00000 00 0000 000 | C19: Безвозмездные поступления от других бюджетов бюджетной системы Российской Федерации | E19: =SUM(E20:E23) -> 3287.55 | F19: =F20+F21+F22+F23 -> 3287.55 | G19: 100
A20: 801 | B20: 2 02 15001 10 0000 150 | C20: Дотации бюджетам субъектов Российской Федерации и муниципальных образований | E20: 1748.07 | F20: 1748.07 | G20: 100
A21: 801 | B21: 2 02 03000 00 0000 151 | C21: Субвенции бюджетам субъектов Российской Федерации и муниципальных образований | D21: 2.3 | E21: 103.20 | F21: 103.20 | G21: 100
A22: 801 | B22: 2 02 04014 10 0000 151 | C22: Межбюджетные трансферты, передаваемые бюджетам муниципальных образований на осуществление части полномочий по решению вопросов местного значения | D22: -45.8 | E22: 92.71 | F22: 92.71 | G22: 100
A23: 801 | B23: 2 02 04999 10 0000 151 | C23: Прочие межбюджетные трансферты, передаваемые бюджетам сельских поселений | D23: 45.8 | E23: 1343.56 | F23: 1343.56 | G23: 100
A24: 801 | B24: 2 19 60010 10 0000 150 | C24: Возврат прочих остатков субсидий, субвенций и иных межбюджетных трансфертов, имеющих целевое назначение, прошлых лет из бюджетов сельских поселений
C25: Всего доходов | D25: =D5+D17 ->  | E25: =E5+E17 -> 3645.75 | F25: =F5+F17 -> 3646.89 | G25: 100

Sheet 2
B1: Приложение 2 к Решению № от .04.2022 г « Об исполнении бюджета сельской администрации МО Малочергинское сельское поселение за 2021 года."
A3: Распределение бюджетных ассигнований по разделам, подразделам классификации расходов бюджета муниципального образования Малочергинское сельское поселение за 2021 год
A5: Наименование показателя | B5: Раздел, подраздел | C5: Изменения (+;-) | D5: Утверждено,(тыс.руб.) | E5: Исполнено,(тыс.руб.) | F5: Процент исполнения (процент)
A6: ОБЩЕГОСУДАРСТВЕННЫЕ ВОПРОСЫ | B6: 0100 | C6: =SUM(C7:C8) -> 130.8 | D6: =SUM(D7:D9) -> 2972.09 | E6: =SUM(E7:E9) -> 2970.45 | F6: =E6/D6*100 -> 99.9
A7: Функционирование высшего должностного лица субъекта Российской Федерации и муниципального образования | B7: 0102 | C7: -38.0 | D7: 313.00 | E7: 312.01 | F7: =E7/D7*100 -> 99.7
A8: Функционирование Правительства Российской Федерации, высших исполнительных органов государственной власти субъектов Российской Федерации, местных администраций | B8: 0104 | C8: 168.8 | D8: 1214.62 | E8: 1214.00 | F8: 99.9
A9: ДРУГИЕ ОБЩЕГОСУДАРСТВЕННЫЕ РАСХОДЫ | B9: 0113 | D9: 1444.47 | E9: 1444.44 | F9: 100.0
A10: НАЦИОНАЛЬНАЯ ОБОРОНА | B10: 0200 | C10: =C11 -> 50.5 | D10: =D11 -> 103.20 | E10: =E11 -> 103.20 | F10: 100.0
A11: Мобилизационная и вневойсковая подготовка | B11: 0203 | C11: 50.5 | D11: 103.20 | E11: 103.20 | F11: 100.0
A12: НАЦИОНАЛЬНАЯ ЭКОНОМИКА | B12: 0400 | D12: =D13+D14 -> 0.00 | E12: =E13 -> 0.00
A13: Дорожное хозяйство (дорожные фонды) | B13: 0409 | E13: 0.00
A14: Другие вопросы в области национальной экономики | B14: 0412
A15: ЖИЛИЩНО-КОММУНАЛЬНОЕ ХОЗЯЙСТВО | B15: 0500 | D15: =D17+D16 -> 121.10 | E15: =E16+E17 -> 109.59 | F15: 90.5
A16: Коммунальное хозяйство | B16: 0502 | D16: 90.06 | E16: 78.54 | F16: 87.2
A17: БЛАГОУСТРОЙСТВО | B17: 0503 | D17: 31.05 | E17: 31.05 | F17: 100.0
A18: ФИЗИЧЕСКАЯ КУЛЬТУРА И СПОРТ | B18: 1100 | C18: 11 | D18: =D19 -> 527.00 | E18: =E19 -> 526.12 | F18: 99.8
A19: Другие вопросы в области физической культуры и спорта | B19: 1105 | D19: 527.00 | E19: 526.12 | F19: 99.8
A20: ВСЕГО РАСХОДОВ | C20: =C6+#REF!+#REF!+C10+C12 ->  | D20: =D6+D10+D15+D18 -> 3723.39 | E20: =E6+E10+E12+E15+E18 -> 3709.36 | F20: 99.6

Sheet 3
C1: Приложение 3 к Решению № 22/0 от 20.04.2022 г « Об исполнении бюджета сельской администрации МО Малочергинское сельское поселение за 2021 года."
A2: Ведомственная структура расходов бюджета муниципального образования Малочергинское сельское поселение на 2021 год
H3: (тыс. рублей)
A4: Наименование главного распорядителя | B4: Гл | C4: Рз | D4: ПР | E4: ЦСР | F4: ВР | G4: Утверждено, (тыс.руб.) | H4: Исполнено, (тыс.руб.) | I4: Процент исполнения (процент)
A5: 1 | B5: 2 | C5: 3 | D5: 4 | E5: 5 | F5: 6 | G5: 7 | H5: 8 | I5: 9
A6: ОБЩЕГОСУДАРСТВЕННЫЕ ВОПРОСЫ | B6: 801 | C6: 01 | D6: 00 | G6: =G7+G11+G22 -> 2972.09 | H6: =H7+H11+H22 -> 2970.45 | I6: =H6/G6*100 -> 99.9
A7: Функционирование высшего должностного лица субьекта Российской Федерации и муниципального образования | B7: 801 | C7: 01 | D7: 02 | G7: =G8 -> 313.00 | H7: 312.01 | I7: 99.7
A8: Непрограммные направления деятельности сельской администрации | B8: 801 | C8: 01 | D8: 02 | G8: 313.00 | H8: 312.01 | I8: 99.7
A9: Обеспечение деятельности высшего должностного лица | B9: 801 | C9: 01 | D9: 02 | E9: 99 0 Л0 10100 | G9: 313.00 | H9: 312.01 | I9: 99.7
A10: Расходы на выплаты персоналу в целях обеспечения выполнения функций государственными (муниципальными) органами, казенными учреждениями, органами управления государственными внебюджетными фондами | B10: 801 | C10: 01 | D10: 02 | E10: 99 0 Л0 10100 | F10: 100 | G10: 313.00 | H10: 312.01 | I10: 99.7
A11: Функционирование Правительства Российской Федерации, высших исполнительных органов государственной власти субъектов Российской Федерации, местных администрации | B11: 801 | C11: 01 | D11: 04 | G11: =G12+G18 -> 1214.62 | H11: =H12+H18 -> 1214.00 | I11: 99.9
A12: Подпрограмма "Развитие экономического и налогового потенциал" | B12: 801 | C12: 01 | D12: 04 | E12: 01 2 00 00000 | G12: =G13+G15 -> 62.82 | H12: =H13+H15 -> 62.79 | I12: 100.0
A13: Основное мероприятие "Формирование эффективной системы управления и распоряжения муниципальными финансами" | B13: 801 | C13: 01 | D13: 04 | E13: 01 2 01 00000 | G13: =G14 -> 21.10 | H13: =H14 -> 21.07 | I13: 99.9
A14: Уплата налогов, сборов и иных платежей | B14: 801 | C14: 01 | D14: 04 | E14: 01 2 01 01000 | F14: 800 | G14: 21.10 | H14: 21.07 | I14: 99.9
A15: Основное мероприятие "Повышение эффективности управления муниципальной собственностью" | B15: 801 | C15: 01 | D15: 04 | E15: 01 2 02 10000 | G15: =G16+G17 -> 41.72 | H15: =H16+H17 -> 41.72 | I15: 100.0
A16: Иные межбюджетные трансферты | B16: 801 | C16: 01 | D16: 04 | E16: 01 2 02 01100 | F16: 500 | G16: 41.72 | H16: 41.72 | I16: 100.0
A17: Закупка товаров, работ и услуг для обеспечения государственных (муниципальных) нужд | B17: 801 | C17: 01 | D17: 04 | E17: 01 2 02 10200 | F17: 200
A18: Подпрограмма "Создание условий реализаций муниципальной программы" | B18: 801 | C18: 01 | D18: 04 | E18: 01 3 00 00000 | G18: =G19 -> 1151.80 | H18: =H19 -> 1151.21 | I18: 99.9
A19: Основное мероприятие "Повышение эффективности муниципального управления" | B19: 801 | C19: 01 | D19: 04 | E19: 01 3 01 00000 | G19: =G20+G21 -> 1151.80 | H19: =H20+H21 -> 1151.21 | I19: 99.9
A20: Расходы на выплаты персоналу в целях обеспечения выполнения функций государственными (муниципальными) органами, казенными учреждениями, органами управления государственными внебюджетными фондами | B20: 801 | C20: 01 | D20: 04 | E20: 01 3 У1 80110 | F20: 100 | G20: 870.00 | H20: 869.41 | I20: 99.9
A21: Расходы на выплаты персоналу в целях обеспечения выполнения функций государственными (муниципальными) органами, казенными учреждениями, органами управления государственными внебюджетными фондами | B21: 801 | C21: 01 | D21: 04 | E21: 01 3 У1 S8500 | F21: 100 | G21: 281.80 | H21: 281.80 | I21: 100.0
A22: ДРУГИЕ ОБЩЕГОСУДАРСТВЕННЫЕ ВОПРОСЫ | B22: 801 | C22: 01 | D22: 13 | G22: =G23+G27+G38 -> 1444.47 | H22: =H23+H27+H38 -> 1444.44 | I22: 100.0
A23: Подпрограмма "Развитие социально-культурной сферы" | B23: 801 | C23: 01 | D23: 13 | E23: 01 1 01 00000 | G23: =G24 -> 817.65 | H23: =H24 -> 817.65 | I23: 100.0
A24: Основное мероприятие "Развитие культурно-досуговой деятельности" | B24: 801 | C24: 01 | D24: 13 | E24: 01 1 01 00000 | G24: =G25+G26 -> 817.65 | H24: =H25+H26 -> 817.65 | I24: 100.0
A25: Закупка товаров, работ и услуг для обеспечения государственных (муниципальных) нужд | B25: 801 | C25: 01 | D25: 13 | E25: 01 1 01 01200 | F25: 200 | G25: 42.65 | H25: 42.65 | I25: 100.0
A26: Закупка товаров, работ и услуг для обеспечения государственных (муниципальных) нужд | B26: 801 | C26: 01 | D26: 13 | E26: 01 1 01 03100 | F26: 200 | G26: 775.00 | H26: 775.00 | I26: 100.0
A27: Подпрограмма "Развитие экономического и налогового потенциал" | B27: 801 | C27: 01 | D27: 13 | E27: 01 2 00 00000 | G27: =G28+G31 -> 488.44 | H27: =H28+H31 -> 488.44
A28: Основное мероприятие "Фомирование эффективной системы управления и распоряжения муниципальными финансами" | B28: 801 | C28: 01 | D28: 13 | E28: 01 2 01 00000 | G28: =G29 -> 26.72 | H28: =H29 -> 26.72 | I28: =H28/G28*100 -> 100.0
A29: Обеспечение мероприятий по по информатизации бюджетного процесса | B29: 801 | C29: 01 | D29: 13 | E29: 01 2 01 S9600 | G29: 26.72 | H29: 26.72 | I29: 100.0
A30: Закупка товаров, работ и услуг для обеспечения государственных (муниципальных) нужд | B30: 801 | C30: 01 | D30: 13 | E30: 01 2 01 S9600 | F30: 200 | G30: 26.72 | H30: 26.72 | I30: 100.0
A31: Основное мероприятие "Повышение эффективной управления муниципальной собственностью" | B31: 801 | C31: 01 | D31: 13 | E31: 01 2 02 00000 | G31: =G32+G34+G36 -> 461.72 | H31: =H32+H34+H36 -> 461.72 | I31: 100.0
A32: Обеспечение доступа к внешним информационным ресурсам | B32: 801 | C32: 01 | D32: 13 | E32: 01 2 02 01200 | G32: =G33 -> 5.90 | H32: =H33 -> 5.90 | I32: =H32/G32*100 -> 100.0
A33: Закупка товаров, работ и услуг для обеспечения государственных (муниципальных) нужд | B33: 801 | C33: 01 | D33: 13 | E33: 01 2 02 01200 | F33: 200 | G33: 5.90 | H33: 5.90 | I33: 100.0
A34: Материально-техническое обеспечение | B34: 801 | C34: 01 | D34: 13 | E34: 01 2 02 01300 | G34: =G35 -> 248.96 | H34: =H35 -> 248.96 | I34: =H34/G34*100 -> 100.0
A35: Закупка товаров, работ и услуг для обеспечения государственных (муниципальных) нужд | B35: 801 | C35: 01 | D35: 13 | E35: 01 2 02 01300 | F35: 200 | G35: 248.96 | H35: 248.96 | I35: 100.0
A36: Организация мероприятий по содержанию муниципального имущества | B36: 801 | C36: 01 | D36: 13 | E36: 01 2 02 03100 | G36: =G37 -> 206.86 | H36: =H37 -> 206.86 | I36: 100.0
A37: Закупка товаров, работ и услуг для обеспечения государственных (муниципальных) нужд | B37: 801 | C37: 01 | D37: 13 | E37: 01 2 02 03100 | F37: 200 | G37: 206.86 | H37: 206.86 | I37: 100.0
A38: Подпрограмма "Создание условий реализаций муниципальной программы" | B38: 801 | C38: 01 | D38: 13 | E38: 01 3 01 00000 | G38: =G39 -> 138.38 | H38: =H39 -> 138.36 | I38: 100.0
A39: Основное мероприятие "Повышение эффективности муниципального управления" | B39: 801 | C39: 01 | D39: 13 | E39: 01 3 01 00000 | G39: =G40+G41+G42 -> 138.38 | H39: =H40+H41+H42 -> 138.36 | I39: 100.0
A40: Расходы на выплаты персоналу в целях обеспечения выполнения функций государственными (муниципальными) органами, казенными учреждениями, органами управления государственными внебюджетными фондами | B40: 801 | C40: 01 | D40: 13 | E40: 01 3 01 03100 | F40: 100 | G40: 9.60 | H40: 9.60 | I40: 100.0
A41: Закупка товаров, работ и услуг для обеспечения государственных (муниципальных) нужд | B41: 801 | C41: 01 | D41: 13 | E41: 01 3 01 01200 | F41: 200 | G41: 120.00 | H41: 119.98 | I41: 100.0
A42: Закупка товаров, работ и услуг для обеспечения государственных (муниципальных) нужд | B42: 801 | C42: 01 | D42: 13 | E42: 01 3 01 03100 | F42: 200 | G42: 8.78 | H42: 8.78 | I42: 100.0
A43: НАЦИОНАЛЬНАЯ ОБОРОНА | B43: 801 | C43: 02 | D43: 00 | G43: =G44 -> 103.20 | H43: 103.20 | I43: 100.0
A44: Мобилизационная и вневойсковая подготовка | B44: 801 | C44: 02 | D44: 03 | E44: 99 0 00 00000 | G44: 103.20 | H44: 103.20 | I44: 100.0
A45: Осуществление первичного воинского учета на территориях, где отсутствуют военные комиссариаты | B45: 801 | C45: 02 | D45: 03 | E45: 99 0 Л1 51180 | G45: 103.20 | H45: 103.20 | I45: 100.0
A46: Расходы на выплаты персоналу в целях обеспечения выполнения функций государственными (муниципальными) органами, казенными учреждениями, органами управления государственными внебюджетными фондами | B46: 801 | C46: 02 | D46: 03 | E46: 99 0 Л1 51180 | F46: 100 | G46: 103.20 | H46: 103.20 | I46: 100.0
A47: ЖИЛИЩНО-КОММУНАЛЬНОЕ ХОЗЯЙСТВО | B47: 801 | C47: 05 | D47: 00 | G47: =G48+G52 -> 121.10 | H47: =H48+H52 -> 109.59 | I47: 90.5
A48: Коммунальное хозяйство | B48: 801 | C48: 05 | D48: 02 | G48: =G49 -> 90.06 | H48: 78.54 | I48: 87.2
A49: Подпрограмма "Развитие инженерно- коммунального и дорожно-транспортного комплекса" | B49: 801 | C49: 05 | D49: 02 | E49: 02 1 02 00000 | G49: 90.06 | H49: 78.54 | I49: 87.2
A50: Основное мероприятие "Содержание инженерно -коммунальной инфраструктуры | B50: 801 | C50: 05 | D50: 02 | E50: 02 1 02 00000 | G50: 90.06 | H50: 78.54 | I50: 87.2
A51: Закупка товаров, работ и услуг для обеспечения государственных (муниципальных) нужд | B51: 801 | C51: 05 | D51: 02 | E51: 02 1 02 01400 | F51: 200 | G51: 90.06 | H51: 78.54 | I51: 87.2
A52: Благоустройство | B52: 801 | C52: 05 | D52: 03 | G52: =G53 -> 31.05 | H52: 31.05 | I52: 100.0
A53: Подпрограмма "Повышение уровня благоустройство территории" | B53: 801 | C53: 05 | D53: 03 | E53: 02 3 00 00000 | G53: 31.05 | H53: 31.05 | I53: 100.0
A54: Основное мероприятие "Подержание и улучшение санитрарного и эстетического состояния территории" | B54: 801 | C54: 05 | D54: 03 | E54: 02 3 01 01200 | G54: 31.05 | H54: 31.05 | I54: 100.0
A55: Закупка товаров, работ и услуг для обеспечения государственных (муниципальных) нужд | B55: 801 | C55: 05 | D55: 03 | E55: 02 3 01 01200 | F55: 200 | G55: 31.05 | H55: 31.05 | I55: 100.0
A56: ФИЗИЧЕСКАЯ КУЛЬТУРА И СПОРТ | B56: 801 | C56: 11 | D56: 00 | G56: =G57 -> 527.00 | H56: 526.12 | I56: 99.8
A57: Другие вопросы в области физической культуры и спорта | B57: 801 | C57: 11 | D57: 05 | G57: 527.00 | H57: 526.12 | I57: 99.8
A58: Подпрограмма "Создание условий реализаций муниципальной программы" | B58: 801 | C58: 11 | D58: 05 | E58: 01 3 01 00000 | G58: 527.00 | H58: 526.12 | I58: 99.8
A59: Основное мероприятие "Повышение эффективности муниципального управления" | B59: 801 | C59: 11 | D59: 05 | E59: 01 3 01 01100 | G59: 527.00 | H59: 526.12 | I59: 99.8
A60: Расходы на выплаты персоналу в целях обеспечения выполнения функций государственными (муниципальными) органами, казенными учреждениями, органами управления государственными внебюджетными фондами | B60: 801 | C60: 11 | D60: 05 | E60: 01 3 01 01100 | F60: 100 | G60: 527.00 | H60: 526.12 | I60: 99.8
A61: Условно утверждаемые расходы | B61: 999 | C61: 99 | D61: 99 | E61: 99 9 99 99999
A62: ВСЕГО РАСХОДОВ | G62: =G6+G43+G47+G56 -> 3723.39 | H62: =H6+H43+H47+H56 -> 3709.36 | I62: 99.6

Sheet 4
C1: Приложение 4 к Решению № 22/1 от 20.04.2022 г « Об исполнении бюджета сельской администрации МО Малочергинское сельское поселение за 2021 года."
A2: Источники финансирования бюджета муниципального образования Малочергинское сельское поселение за 2021 год
B4: Код бюджетной классификации | C4: Утвержденные плановые назначения на 2021 год, сумма (тыс. рублей) | D4: Кассовое исполнение за 2021 год, сумма (тыс. рублей) | E4: Процент исполнения плана (процент)
A5: Дефицит бюджета | C5: =C6 -> 77.64 | D5: =D6 -> 62.46 | E5: =D5/C5*100 -> 80.45
A6: Источники внутреннего финансирования дефицита бюджета: | B6: 000 01 00 00 00 00 0000 000 | C6: =C8 -> 77.64 | D6: =D8 -> 62.46 | E6: =D6/C6*100 -> 80.45
A7: в том числе:
A8: Изменение остатков средств на счетах по учету средств бюджета | B8: 000 01 05 00 00 00 0000 000 | C8: 77.64 | D8: 62.46 | E8: =D8/C8*100 -> 80.45
